bitfinex/quotes_SOLUSD_20240920
["timestamp","ask_amount","ask_price","bid_price","bid_amount"]
[1726839034967,0.4374636,148.82,148.74,70.0]
[1726839035146,30.9341476,148.82,148.74,20.0]
[1726839035350,0.4374636,148.82,148.75,0.97239897]
[1726839035751,0.4374636,148.82,148.76,20.84620196]
[1726839036164,0.4374636,148.82,148.78,20.0]
[1726839036749,0.4374636,148.82,148.76,20.0]
[1726839036948,0.4374636,148.82,148.8,20.0]
[1726839037265,0.4374636,148.82,148.81,0.12549]
[1726839037568,0.4374636,148.82,148.81,70.12549]
[1726839038383,0.4374636,148.82,148.81,70.0]
[1726839038556,0.4374636,148.82,148.81,70.12549]
[1726839039671,0.4374636,148.82,148.81,20.12549]
[1726839039887,0.4374636,148.82,148.81,70.97036835]
[1726839040250,0.4374636,148.82,148.81,94.74725235]
[1726839040662,0.0686858,148.86,148.81,94.74725235]
[1726839040663,0.0686858,148.86,148.85,50.0]
[1726839040858,0.0686858,148.86,148.85,70.12549]
[1726839041260,0.0686858,148.86,148.85,70.96921131]
[1726839041651,0.0686858,148.86,148.84,20.0]
[1726839042280,0.0686858,148.86,148.83,0.12549]
[1726839042487,0.1222201,148.86,148.81,20.0]
[1726839042769,0.1222201,148.86,148.8,15.4509]
[1726839043155,0.1222201,148.86,148.77,56.0379]
[1726839043351,0.1222201,148.86,148.78,0.84561084]
[1726839043757,0.1222201,148.86,148.79,50.0]
[1726839044152,0.1222201,148.86,148.8,20.0]
[1726839044570,0.1222201,148.86,148.78,20.0]
[1726839045077,0.1222201,148.86,148.81,20.0]
[1726839045766,0.1222201,148.86,148.82,0.84498941]
[1726839045968,0.1222201,148.86,148.82,50.0]
[1726839046167,0.1222201,148.86,148.84,50.12549]
[1726839046477,0.1222201,148.86,148.85,20.0]
[1726839046853,0.1222201,148.86,148.83,20.0]
[1726839048260,0.1222201,148.86,148.81,20.0]
[1726839048675,0.1222201,148.86,148.76,96.43407864]
[1726839048888,6.4215,148.85,148.76,16.0555]
[1726839049167,6.7187,148.84,148.74,50.0]
[1726839049363,30.496384,148.83,148.74,50.0]
[1726839049566,23.776884,148.83,148.75,0.84659047]
[1726839049968,30.495984,148.83,148.74,68.99816647]
[1726839050186,23.776884,148.81,148.71,50.0]
[1726839050484,23.776884,148.79,148.68,84.68266647]
[1726839051164,6.0062,148.78,148.68,84.68266647]
[1726839051480,40.385384,148.77,148.65,50.0]
[1726839051664,23.902374,148.75,148.65,6.7268]
[1726839051868,30.094584,148.73,148.59,84.60726647]
[1726839052086,23.776884,148.69,148.59,65.6091]
[1726839052677,23.776884,148.69,148.65,6.7271]
[1726839053189,6.7245,148.71,148.66,7.1066753]
[1726839053485,23.902374,148.72,148.66,7.1066753]
[1726839053660,23.776884,148.7,148.66,0.3800753]
[1726839053864,1.68156162,148.69,148.66,0.3800753]
[1726839054271,6.7248,148.71,148.66,0.3800753]
[1726839054477,23.776884,148.7,148.66,0.3800753]
[1726839056697,30.501784,148.7,148.66,0.3800753]
[1726839058461,23.776884,148.68,148.66,0.3800753]
[1726839058671,55.43116338,148.67,148.66,0.3800753]
[1726839058861,53.749174,148.67,148.66,0.3800753]
[1726839059290,6.7272,148.65,148.6,6.7293]
[1726839059582,6.7272,148.65,148.58,0.5366557]
[1726839059583,23.776884,148.63,148.58,0.5366557]
[1726839059885,23.902374,148.65,148.61,6.7289]
[1726839060088,23.776884,148.65,148.58,0.5366557]
[1726839060269,1.68208622,148.64,148.58,0.5366557]
[1726839060476,25.45904008,148.65,148.58,0.5366557]
[1726839060784,23.776884,148.65,148.58,0.5366557]
[1726839061084,23.1205,148.67,148.58,0.5366557]
[1726839061085,23.1205,148.67,148.59,0.85177538]
[1726839061261,6.6503,148.67,148.59,20.0]
[1726839061666,21.5395,148.71,148.6,0.85068048]
[1726839061969,21.5395,148.71,148.66,6.7267]
[1726839061970,28.2644,148.71,148.66,6.7267]
[1726839062965,23.776884,148.7,148.67,6.7261]
[1726839063266,32.1833704,148.7,148.6,50.0]
[1726839063484,32.1833704,148.7,148.65,6.7271]
[1726839063666,30.501884,148.7,148.65,6.7271]
[1726839063863,23.776884,148.7,148.6,50.0]
[1726839064078,23.776884,148.7,148.59,20.0]
[1726839064079,8.40713665,148.69,148.64,6.7276]
[1726839064294,23.776884,148.68,148.59,20.0]
[1726839064584,23.776884,148.68,148.58,0.6621457]
[1726839064585,30.503584,148.66,148.58,0.5366557]
[1726839064893,23.776884,148.64,148.6,6.7293]
[1726839065071,23.776884,148.62,148.59,6.7298]
[1726839065385,23.776884,148.62,148.58,0.5366557]
[1726839065386,23.776884,148.6,148.58,0.5366557]
[1726839065762,15.8815,148.61,148.58,0.5366557]
[1726839066290,15.8815,148.61,148.59,6.7295]
[1726839066890,6.0012,148.63,148.61,6.7289]
[1726839067087,23.776884,148.62,148.61,6.7289]
[1726839067486,6.0012,148.63,148.61,6.7289]
[1726839069266,15.8138,148.65,148.58,0.5366557]
[1726839069466,15.8138,148.65,148.62,6.7285]
[1726839069684,15.8138,148.65,148.63,6.728]
[1726839069892,6.1643,148.67,148.58,0.5366557]
[1726839069893,6.1643,148.67,148.65,6.727]
[1726839070067,1.6817929,148.66,148.59,20.0]
[1726839070267,1.6817929,148.66,148.62,6.7285]
[1726839070689,12.8906,148.67,148.62,6.7285]
[1726839071492,23.776884,148.65,148.58,0.5366557]
[1726839071675,0.12549,148.64,148.58,0.5366557]
[1726839071879,6.7297,148.6,148.58,0.5366557]
[1726839072070,1.68270816,148.59,148.58,0.5366557]
[1726839072593,32.18907139,148.6,148.58,0.5366557]
[1726839072792,30.632274,148.59,148.58,0.5366557]
[1726839073694,23.776884,148.59,148.58,0.5366557]
[1726839074487,6.5764,148.6,148.58,0.5366557]
[1726839074696,6.6374,148.64,148.62,6.7281]
[1726839075171,6.6374,148.64,148.61,6.7289]
[1726839075367,1.6821095,148.63,148.6,6.7293]
[1726839075680,6.6374,148.64,148.58,0.5366557]
[1726839075879,6.6374,148.64,148.6,6.7292]
[1726839076395,1.68229105,148.63,148.6,6.7292]
[1726839076591,6.6374,148.64,148.6,6.7292]
[1726839076780,23.776884,148.63,148.6,6.7292]
[1726839076989,32.18727493,148.63,148.59,6.7298]
[1726839077167,32.18727493,148.63,148.58,0.5366557]
[1726839077168,23.776884,148.61,148.58,7.2669557]
[1726839077502,25.45946131,148.61,148.58,0.5366557]
[1726839077676,30.506284,148.61,148.58,0.5366557]
[1726839078088,23.776884,148.61,148.58,0.5366557]
[1726839078393,6.6374,148.64,148.58,0.5366557]
[1726839078394,23.902374,148.63,148.6,6.7294]
[1726839078567,6.6374,148.64,148.6,6.7294]
[1726839078773,16.4456,148.66,148.63,6.7281]
[1726839078977,16.4456,148.66,148.63,6.728]
[1726839079276,18.12757433,148.66,148.63,6.728]
[1726839079586,18.12757433,148.66,148.65,6.7272]
[1726839079777,6.2701,148.67,148.63,6.7281]
[1726839080090,6.2701,148.67,148.59,20.0]
[1726839080297,22.381,148.7,148.65,6.7267]
[1726839080478,15.656,148.7,148.6,0.85089548]
[1726839080797,6.18,148.71,148.68,6.7257]
[1726839081373,1.68148585,148.7,148.67,6.7262]
[1726839081587,6.18,148.71,148.67,6.7262]
[1726839081897,23.776884,148.7,148.67,6.7262]
[1726839082109,6.18,148.71,148.68,6.7257]
[1726839082483,16.4632,148.74,148.63,70.0]
[1726839082688,22.3189,148.78,148.67,0.12549]
[1726839082997,22.3189,148.78,148.75,6.7222]
[1726839083375,1.68063714,148.77,148.73,6.7232]
[1726839083595,1.68063714,148.77,148.69,20.0]
[1726839084299,1.68063714,148.77,148.67,20.0]
[1726839084898,23.776884,148.76,148.66,70.0]
[1726839085089,1.68095286,148.75,148.66,70.0]
[1726839086194,1.68095286,148.75,148.66,20.0]
[1726839086498,23.776884,148.74,148.69,6.7249]
[1726839086697,23.776884,148.72,148.63,20.0]
[1726839087214,23.776884,148.72,148.68,6.7257]
[1726839087370,23.776884,148.72,148.69,6.7252]
[1726839087705,23.776884,148.75,148.71,6.7243]
[1726839087898,29.0406,148.78,148.72,6.7239]
[1726839088076,6.7218,148.77,148.72,6.7239]
[1726839088278,1.68092018,148.76,148.65,0.12549]
[1726839088489,22.3189,148.78,148.7,6.7249]
[1726839088797,29.0405,148.78,148.65,20.84895442]
[1726839088990,6.7218,148.77,148.72,6.7239]
[1726839089202,23.902374,148.77,148.65,20.0]
[1726839089589,23.902374,148.77,148.7,6.7248]
[1726839089799,23.776884,148.75,148.7,6.7248]
[1726839089987,30.500884,148.73,148.67,6.7258]
[1726839090182,23.776884,148.71,148.63,20.0]
[1726839090383,23.776884,148.71,148.68,6.7254]
[1726839090579,23.776884,148.72,148.68,6.7254]
[1726839091103,23.776884,148.7,148.61,52.29841463]
[1726839091306,23.776884,148.7,148.64,6.7276]
[1726839091307,23.776884,148.68,148.64,6.7276]
[1726839091606,23.776884,148.68,148.58,80.99597033]
[1726839091607,8.40815851,148.67,148.62,6.7285]
[1726839091778,23.776884,148.66,148.62,6.7285]
[1726839091981,1.68209701,148.65,148.61,6.7289]
[1726839092296,23.776884,148.63,148.59,6.7297]
[1726839092807,23.776884,148.61,148.58,0.5366557]
[1726839092986,23.776884,148.59,148.58,0.5366557]
[1726839093994,30.632274,148.59,148.58,0.5366557]
[1726839094404,23.776884,148.59,148.58,0.5366557]
[1726839094981,16.4576,148.62,148.58,7.2665557]
[1726839095208,23.776884,148.61,148.58,0.5366557]
[1726839096309,23.776884,148.61,148.58,7.2669557]
[1726839097402,6.85359,148.63,148.58,7.2669557]
[1726839097403,23.776884,148.62,148.58,7.2669557]
[1726839097917,6.0576,148.64,148.58,0.5366557]
[1726839098089,0.12549,148.63,148.58,7.2666557]
[1726839098288,0.12549,148.63,148.58,0.5366557]
[1726839098504,1.80821872,148.63,148.58,0.5366557]
[1726839098707,6.7287,148.62,148.58,0.5366557]
[1726839099009,12.7856,148.64,148.59,6.7298]
[1726839099209,23.776884,148.63,148.59,6.7298]
[1726839099505,23.776884,148.63,148.58,0.5366557]
[1726839099506,23.776884,148.61,148.58,0.5366557]
[1726839099910,23.776884,148.59,148.58,0.5366557]
[1726839102105,0.12549,148.62,148.58,7.2669557]
[1726839102303,23.902374,148.63,148.58,0.5366557]
[1726839102989,23.902374,148.63,148.55,0.0686858]
[1726839102990,23.776884,148.61,148.59,6.7299]
[1726839103192,23.776884,148.61,148.6,6.7294]
[1726839103437,23.776884,148.62,148.58,6.7299]
[1726839103620,23.902374,148.63,148.59,6.7297]
[1726839104115,23.902374,148.63,148.61,6.7288]
[1726839104311,23.776884,148.63,148.61,6.7288]
[1726839104996,23.776884,148.63,148.6,6.7294]
[1726839105390,23.776884,148.63,148.59,6.7297]
[1726839105713,23.776884,148.61,148.58,6.7302]
[1726839106993,23.776884,148.62,148.59,6.7297]
[1726839107403,23.776884,148.6,148.57,0.6461863]
[1726839107603,23.776884,148.6,148.57,7.3765863]
[1726839107823,23.776884,148.6,148.57,0.6461863]
[1726839108016,23.776884,148.6,148.57,7.3765863]
[1726839108214,23.776884,148.61,148.58,6.7303]
[1726839108512,23.902374,148.63,148.57,0.6461863]
[1726839108715,23.902374,148.63,148.6,6.7294]
[1726839108913,6.0576,148.64,148.61,6.7289]
[1726839109118,15.2835,148.66,148.62,6.7282]
[1726839109331,6.5798,148.67,148.57,17.75804193]
[1726839109624,6.5798,148.67,148.63,6.728]
[1726839110196,6.99661328,148.69,148.65,6.7268]
[1726839110412,6.7254,148.69,148.59,20.0]
[1726839110724,6.7254,148.69,148.64,6.7275]
[1726839111103,15.0485,148.74,148.62,80.45931463]
[1726839111316,6.44,148.75,148.64,21.8755]
[1726839111627,6.44,148.75,148.72,6.7236]
[1726839111927,1.6810681,148.74,148.66,20.0]
[1726839112100,1.6810681,148.74,148.7,6.7248]
[1726839112299,6.44,148.75,148.71,6.7244]
[1726839112525,6.44,148.75,148.66,20.0]
[1726839112724,22.0449237,148.78,148.72,6.724]
[1726839112924,22.0449237,148.78,148.65,20.0]
[1726839112925,1.68095123,148.77,148.7,6.7244]
[1726839113105,22.0449237,148.78,148.69,6.7253]
[1726839113306,22.0449237,148.78,148.65,20.0]
[1726839113501,6.7234,148.74,148.69,6.7253]
[1726839113701,1.68119685,148.73,148.64,15.8602]
[1726839113917,0.12549,148.71,148.6,22.8474]
[1726839114196,23.776884,148.7,148.65,6.7268]
[1726839114400,23.776884,148.68,148.65,6.7268]
[1726839115123,6.84999,148.71,148.66,6.7265]
[1726839115430,23.776884,148.7,148.66,6.7265]
[1726839115605,1.68165952,148.69,148.65,6.7271]
[1726839115939,0.12549,148.71,148.61,20.0]
[1726839116122,23.776884,148.7,148.65,6.7268]
[1726839116423,23.902374,148.71,148.67,6.7261]
[1726839116610,23.776884,148.71,148.68,6.7256]
[1726839117002,1.68141405,148.71,148.62,0.12549]
[1726839117216,1.68138433,148.7,148.61,100.45931463]
[1726839117525,6.1169,148.76,148.64,20.0]
[1726839117730,6.1169,148.76,148.73,6.7235]
[1726839117898,6.1169,148.76,148.66,20.0]
[1726839118103,6.1169,148.76,148.67,0.84892545]
[1726839118328,22.0449237,148.78,148.68,35.5297]
[1726839118526,13.7178237,148.78,148.72,6.7236]
[1726839118824,8.40259671,148.77,148.72,6.7236]
[1726839119006,6.7222,148.76,148.71,6.7244]
[1726839119206,1.68097835,148.75,148.71,6.7244]
[1726839119530,1.68097835,148.75,148.69,6.725]
[1726839119833,6.7222,148.76,148.71,6.7244]
[1726839120127,6.7227,148.75,148.69,6.7249]
[1726839120343,23.776884,148.74,148.64,72.1918]
[1726839120500,23.776884,148.74,148.65,0.12549]
[1726839120700,23.776884,148.75,148.65,20.12549]
[1726839120908,1.68107388,148.74,148.71,6.7244]
[1726839121109,23.776884,148.74,148.65,20.12549]
[1726839121323,23.776884,148.72,148.63,70.0]
[1726839121935,23.776884,148.72,148.64,0.84966354]
[1726839122109,23.776884,148.73,148.69,6.7249]
[1726839122823,30.500784,148.73,148.68,6.7255]
[1726839123135,23.776884,148.73,148.65,20.0]
[1726839123301,23.776884,148.73,148.63,20.0]
[1726839123504,30.329174,148.71,148.62,0.2543896]
[1726839124220,23.776884,148.69,148.62,0.2543896]
[1726839124402,23.776884,148.67,148.63,6.728]
[1726839124609,1.68189496,148.66,148.62,6.9827896]
[1726839125022,30.504084,148.65,148.62,0.2543896]
[1726839125212,23.776884,148.63,148.62,0.2543896]
[1726839126331,0.12549,148.66,148.62,0.2543896]
[1726839126508,23.776884,148.64,148.62,0.2543896]
[1726839126705,23.776884,148.64,148.62,6.9827896]
[1726839126904,23.902374,148.68,148.64,6.7276]
[1726839127428,23.776884,148.68,148.64,6.7275]
[1726839127624,6.7258,148.68,148.63,6.728]
[1726839127817,1.68177115,148.67,148.62,0.2543896]
[1726839128225,23.239,148.71,148.62,0.2543896]
[1726839128427,6.7263,148.67,148.62,6.9824896]
[1726839128602,23.239,148.71,148.62,0.2543896]
[1726839128812,30.503584,148.66,148.62,0.2543896]
[1726839129130,1.6821219,148.68,148.62,0.2543896]
[1726839129301,23.776884,148.67,148.62,0.2543896]
[1726839129501,1.68193908,148.66,148.64,6.7276]
[1726839129704,23.776884,148.68,148.64,6.7276]
[1726839129902,23.776884,148.66,148.62,0.2543896]
[1726839130234,1.68211863,148.65,148.62,0.2543896]
[1726839130531,23.776884,148.64,148.62,0.2543896]
[1726839130901,23.902374,148.65,148.62,0.2543896]
[1726839131111,30.504984,148.63,148.62,0.2543896]
[1726839131312,6.7263,148.67,148.62,6.9828896]
[1726839131615,23.776884,148.7,148.62,0.2543896]
[1726839131828,6.7252,148.7,148.65,6.727]
[1726839132006,6.4268,148.71,148.68,6.7255]
[1726839132205,6.4268,148.71,148.67,6.7262]
[1726839132635,1.68151709,148.7,148.67,6.7262]
[1726839133445,6.4268,148.71,148.67,6.7262]
[1726839133631,1.68152404,148.7,148.67,6.7262]
[1726839134013,13.1514,148.71,148.62,0.2543896]
[1726839134317,1.68156145,148.7,148.67,6.7262]
[1726839134831,1.68156145,148.7,148.66,6.7267]
[1726839135035,23.776884,148.69,148.66,6.7267]
[1726839135241,7.00246499,148.75,148.67,0.85023293]
[1726839135242,13.58546499,148.75,148.67,0.85023293]
[1726839135411,6.583,148.75,148.63,66.27111463]
[1726839135732,1.68121029,148.74,148.63,66.27111463]
[1726839135937,1.68121029,148.74,148.66,6.7264]
[1726839135938,6.7245,148.71,148.66,6.7264]
[1726839136126,1.68157603,148.7,148.66,6.7264]
[1726839136427,30.625874,148.74,148.69,6.7253]
[1726839136730,30.626474,148.72,148.67,6.7261]
[1726839136931,30.502384,148.69,148.65,6.7271]
[1726839137115,23.776884,148.69,148.66,6.7267]
[1726839137315,1.68162651,148.68,148.66,6.7266]
[1726839137635,30.502284,148.69,148.65,6.7271]
[1726839137837,23.776884,148.67,148.65,6.7271]
[1726839138135,23.776884,148.67,148.64,6.7275]
[1726839138308,25.45870728,148.68,148.62,0.2543896]
[1726839138840,23.776884,148.69,148.66,6.7267]
[1726839139012,23.776884,148.69,148.65,6.727]
[1726839139013,23.776884,148.67,148.65,6.727]
[1726839139329,23.776884,148.65,148.62,6.9827896]
[1726839139515,23.776884,148.63,148.62,0.2543896]
[1726839139934,30.630474,148.63,148.62,0.2543896]
[1726839141240,30.631774,148.6,148.59,0.1030461]
[1726839141532,32.31497071,148.6,148.59,0.1030461]
[1726839141924,53.961574,148.58,148.57,0.2887506]
[1726839142231,38.81919724,148.58,148.57,0.2887506]
[1726839142731,32.08875942,148.58,148.57,0.2887506]
[1726839143232,32.08857994,148.58,148.57,0.2887506]
[1726839143442,23.776884,148.58,148.57,0.2887506]
[1726839143611,1.68288595,148.6,148.57,7.0195506]
[1726839143805,0.12549,148.61,148.57,7.0195506]
[1726839144013,1.68275778,148.61,148.57,0.2887506]
[1726839144227,1.68275778,148.61,148.58,6.7303]
[1726839144841,1.68275778,148.61,148.6,6.7294]
[1726839145040,1.68250757,148.64,148.57,0.2887506]
[1726839145240,23.776884,148.61,148.57,0.2887506]
[1726839145553,23.776884,148.59,148.57,0.2887506]
[1726839145739,25.45973358,148.58,148.57,0.2887506]
[1726839145937,23.902374,148.58,148.57,0.2887506]
[1726839146446,23.776884,148.58,148.57,7.0195506]
[1726839146643,0.12549,148.63,148.57,0.2887506]
[1726839146946,0.12549,148.61,148.57,0.2887506]
[1726839147249,0.12549,148.59,148.57,0.2887506]
[1726839147449,23.776884,148.58,148.57,0.2887506]
[1726839147638,30.632674,148.58,148.57,0.2887506]
[1726839148553,6.7312,148.56,148.55,0.0686858]
[1726839148869,32.31723723,148.56,148.55,0.0686858]
[1726839150023,30.633574,148.56,148.55,0.0686858]
[1726839150426,6.7326,148.53,148.52,0.2887506]
[1726839150647,32.31884429,148.53,148.52,0.2887506]
[1726839150843,32.31884429,148.53,148.5,0.1030461]
[1726839150844,6.85899,148.51,148.5,0.1030461]
[1726839151048,6.85899,148.51,148.46,0.3574364]
[1726839151049,6.86079,148.47,148.46,0.3574364]
[1726839151352,30.637674,148.47,148.46,0.3574364]
[1726839151530,32.32249085,148.47,148.46,0.3574364]
[1726839151857,30.639974,148.42,148.34,6.741]
[1726839152031,36.975774,148.42,148.34,6.741]
[1726839152229,38.66102353,148.42,148.32,0.3917967]
[1726839152425,58.66102353,148.42,148.32,0.3917967]
[1726839152954,30.238174,148.42,148.32,0.3917967]
[1726839153129,31.92338067,148.42,148.36,6.7402]
[1726839153324,31.92338067,148.42,148.35,6.7407]
[1726839153533,31.92338067,148.42,148.37,0.3737321]
[1726839153534,0.12549,148.41,148.37,0.3737321]
[1726839153828,0.12549,148.39,148.37,0.7190942]
[1726839154038,23.902374,148.39,148.37,0.7190942]
[1726839154240,25.46205988,148.38,148.37,0.7190942]
[1726839155349,23.902374,148.43,148.38,6.7394]
[1726839155856,12.7971,148.46,148.4,6.7385]
[1726839156158,12.7971,148.46,148.4,6.7384]
[1726839156327,6.061,148.46,148.37,0.7190942]
[1726839156532,6.0098,148.49,148.38,7.04297637]
[1726839156848,1.68446383,148.48,148.41,6.7376]
[1726839157046,6.7358,148.46,148.4,6.7384]
[1726839157353,1.68462334,148.45,148.38,6.1855]
[1726839157653,6.99602314,148.48,148.42,6.7375]
[1726839157654,1.68462115,148.47,148.42,6.7375]
[1726839157951,6.0098,148.54,148.41,20.0]
[1726839158254,6.9953029,148.52,148.39,20.0]
[1726839158636,6.7358,148.46,148.4,6.7385]
[1726839159454,0.12549,148.44,148.4,6.7385]
[1726839159829,23.776884,148.43,148.4,6.7385]
[1726839160031,23.776884,148.41,148.37,0.7190942]
[1726839160230,1.684845,148.4,148.38,6.7393]
[1726839160530,23.776884,148.41,148.4,6.7385]
[1726839160741,0.12549,148.48,148.37,0.7190942]
[1726839160931,43.776884,148.49,148.37,0.7190942]
[1726839160932,23.902374,148.46,148.37,0.7190942]
[1726839161238,23.902374,148.46,148.42,6.7371]
[1726839161445,23.902374,148.46,148.41,6.738]
[1726839161746,6.7364,148.45,148.41,0.3453621]
[1726839161941,23.776884,148.43,148.41,0.3453621]
[1726839162247,25.46150092,148.42,148.41,0.3453621]
[1726839162440,25.58699092,148.42,148.41,0.3453621]
[1726839162643,23.776884,148.42,148.41,0.3453621]
[1726839163046,0.12549,148.46,148.41,0.3453621]
[1726839163243,8.54601875,148.46,148.41,0.3453621]
[1726839163472,0.12549,148.44,148.41,0.3453621]
[1726839163755,0.12549,148.44,148.41,7.0833621]
[1726839164468,23.902374,148.44,148.41,7.0833621]
[1726839164759,0.12549,148.42,148.41,0.3453621]
[1726839164931,23.776884,148.43,148.41,0.3453621]
[1726839165537,25.46149671,148.42,148.41,0.3453621]
[1726839165737,49.65464926,148.49,148.41,0.3453621]
[1726839165952,12.9035,148.5,148.45,6.7362]
[1726839166136,1.68418204,148.49,148.41,15.4065621]
[1726839166337,1.68421427,148.48,148.41,15.4065621]
[1726839166550,6.1695,148.5,148.41,15.4065621]
[1726839166759,12.9036,148.5,148.41,15.4065621]
[1726839166961,12.9036,148.5,148.45,6.7361]
[1726839167139,6.7331,148.52,148.42,7.51245754]
[1726839167335,1.6839198,148.51,148.42,6.6565]
[1726839167857,6.7354,148.47,148.42,6.6565]
[1726839168032,1.68428303,148.46,148.42,6.6565]
[1726839168231,6.7349,148.48,148.42,6.6565]
[1726839168447,23.776884,148.47,148.42,6.6565]
[1726839168650,23.776884,148.45,148.42,6.6565]
[1726839168862,23.776884,148.47,148.42,6.6565]
[1726839169061,0.12549,148.51,148.42,6.6565]
[1726839169363,6.2799,148.54,148.43,20.85607575]
[1726839169664,6.7317,148.55,148.5,6.7336]
[1726839169958,15.3596303,148.56,148.43,69.65464926]
[1726839169959,0.0627303,148.56,148.44,50.0]
[1726839170135,8.47729988,148.56,148.51,6.7334]
[1726839170335,0.0627303,148.56,148.52,6.733]
[1726839170863,0.0627303,148.56,148.5,15.1498]
[1726839171170,6.7941303,148.56,148.51,6.7334]
[1726839171347,0.0627303,148.56,148.52,6.733]
[1726839171662,0.0627303,148.56,148.53,6.7325]
[1726839172144,0.0627303,148.56,148.52,6.733]
[1726839172547,0.0627303,148.56,148.53,6.7326]
[1726839172848,23.776884,148.55,148.52,6.733]
[1726839173364,23.8396143,148.56,148.52,6.733]
[1726839173657,23.776884,148.54,148.52,6.733]
[1726839174436,23.776884,148.55,148.47,20.0]
[1726839174761,23.902374,148.53,148.46,15.263]
[1726839174956,23.776884,148.51,148.47,6.735]
[1726839175146,0.0627303,148.56,148.46,15.263]
[1726839175648,0.1882203,148.56,148.46,15.263]
[1726839176366,23.902374,148.54,148.46,15.263]
[1726839176549,23.776884,148.52,148.46,15.263]
[1726839177256,23.776884,148.52,148.49,6.7341]
[1726839177457,0.12549,148.54,148.46,15.263]
[1726839177649,0.0627303,148.56,148.53,6.7326]
[1726839178054,6.7943303,148.56,148.51,6.7334]
[1726839178443,6.7325,148.54,148.49,6.7343]
[1726839178644,8.41633402,148.53,148.47,20.0]
[1726839178845,23.776884,148.53,148.46,15.263]
[1726839179465,23.776884,148.53,148.49,6.7343]
[1726839179636,23.776884,148.55,148.51,6.7335]
[1726839179840,0.0627303,148.56,148.52,6.7327]
[1726839180351,8.47738711,148.56,148.51,6.7334]
[1726839180559,6.7318,148.55,148.5,6.7338]
[1726839180943,6.85769,148.54,148.49,6.7343]
[1726839181138,6.85769,148.54,148.46,15.263]
[1726839181139,0.12549,148.54,148.5,6.7338]
[1726839181338,0.12549,148.54,148.51,6.7334]
[1726839181653,0.0627303,148.56,148.53,6.7325]
[1726839181855,0.0627303,148.56,148.54,6.7321]
[1726839182355,0.0627303,148.56,148.48,0.85410989]
[1726839182356,0.0627303,148.56,148.52,6.7329]
[1726839182553,1.74597228,148.56,148.52,6.7329]
[1726839182753,1.74597228,148.56,148.46,15.263]
[1726839182944,1.74597228,148.56,148.5,6.7339]
[1726839183142,1.74597228,148.56,148.46,15.263]
[1726839183342,23.902374,148.54,148.5,6.7339]
[1726839183559,23.902374,148.52,148.47,6.7352]
[1726839183764,23.776884,148.5,148.46,6.7357]
[1726839183966,30.511784,148.48,148.43,0.242316]
[1726839184175,1.68410684,148.47,148.44,6.7366]
[1726839185746,23.776884,148.46,148.43,0.242316]
[1726839186079,23.776884,148.46,148.43,6.979316]
[1726839186367,23.902374,148.47,148.43,6.979316]
[1726839187070,23.776884,148.47,148.44,6.7366]
[1726839187383,23.902374,148.48,148.44,6.7366]
[1726839187548,23.776884,148.52,148.43,0.242316]
[1726839187755,0.12549,148.51,148.43,0.242316]
[1726839187954,23.776884,148.5,148.43,0.242316]
[1726839188380,30.637574,148.48,148.43,6.979416]
[1726839188550,1.68418445,148.47,148.43,6.979416]
[1726839188882,1.68418161,148.47,148.43,6.979416]
[1726839189048,8.41958161,148.47,148.43,0.242316]
[1726839189249,6.7367,148.44,148.43,0.242316]
[1726839189449,23.902374,148.44,148.43,0.242316]
[1726839189772,30.639074,148.44,148.43,0.242316]
[1726839190273,30.639074,148.44,148.41,0.1030461]
[1726839190274,6.7376,148.42,148.41,0.1030461]
[1726839190577,30.641774,148.38,148.37,0.3737321]
[1726839192252,30.641774,148.38,148.32,0.4080924]
[1726839192253,6.86719,148.33,148.32,0.4080924]
[1726839192455,30.644074,148.33,148.32,0.4080924]
[1726839193178,30.644074,148.33,148.21,30.87712906]
[1726839193179,2.93839,148.29,148.04,23.34259917]
[1726839193374,2.93839,148.29,147.95,50.8245162]